[Event "*** Titled Tuesday 3|2 Blitz"]
[Site "Chess.com"]
[Date "2016.05.03"]
[Round "1"]
[White "destroyer305"]
[Black "Dlugy"]
[Result "1/2-1/2"]
[WhiteElo "2255"]
[BlackElo "2584"]
[TimeControl "180+2"]
[EndTime "17:10:12 PDT"]
[Termination "Game drawn by agreement"]

1. e4 {[%clk 0:03:01.3]} 1... c5 {[%clk 0:03:00.7]} 2. d4 {[%clk 0:03:02.3]}
2... d6 {[%clk 0:03:02.3]} 3. dxc5 {[%clk 0:03:02.3]} 3... Nf6 {[%clk
0:03:03.9]} 4. Nc3 {[%clk 0:03:02.5]} 4... Qa5 {[%clk 0:02:57.1]} 5. cxd6 {[%clk
0:02:43.5]} 5... exd6 {[%clk 0:02:48]} 6. Bd3 {[%clk 0:02:42.1]} 6... Bg4 {[%clk
0:02:46.2]} 7. f3 {[%clk 0:02:39.4]} 7... Be6 {[%clk 0:02:46.4]} 8. Bd2 {[%clk
0:02:39.6]} 8... Nc6 {[%clk 0:02:43.4]} 9. Nd5 {[%clk 0:02:35.5]} 9... Qd8
{[%clk 0:02:44.3]} 10. Nxf6+ {[%clk 0:02:36.8]} 10... Qxf6 {[%clk 0:02:44.9]}
11. Bc3 {[%clk 0:02:38.4]} 11... Qg5 {[%clk 0:02:41.1]} 12. Qd2 {[%clk 0:02:39]}
12... Qxd2+ {[%clk 0:02:38.7]} 13. Kxd2 {[%clk 0:02:37.2]} 13... O-O-O {[%clk
0:02:39.4]} 14. Ne2 {[%clk 0:02:31.5]} 14... d5 {[%clk 0:02:40.8]} 15. exd5
{[%clk 0:02:32.9]} 15... Bxd5 {[%clk 0:02:40.9]} 16. Rad1 {[%clk 0:02:27.5]}
16... Nb4 {[%clk 0:02:38]} 17. Bxb4 {[%clk 0:02:20.3]} 17... Bxb4+ {[%clk
0:02:38.6]} 18. c3 {[%clk 0:02:22]} 18... Be7 {[%clk 0:02:37.7]} 19. b3 {[%clk
0:02:16.8]} 19... Bg5+ {[%clk 0:02:36.7]} 20. Kc2 {[%clk 0:02:18.1]} 20... Rhe8
{[%clk 0:02:33.7]} 21. Rhe1 {[%clk 0:02:16]} 21... g6 {[%clk 0:02:34.2]} 22. Nd4
{[%clk 0:02:14.4]} 22... Bf4 {[%clk 0:02:30.8]} 23. g3 {[%clk 0:02:08.8]} 23...
Be3 {[%clk 0:02:23.6]} 24. Bb5 {[%clk 0:02:01.6]} 24... Re7 {[%clk 0:02:20.4]}
25. c4 {[%clk 0:01:57.8]} 25... a6 {[%clk 0:01:58]} 26. Ba4 {[%clk 0:01:48]}
26... b5 {[%clk 0:01:10.9]} 27. cxd5 {[%clk 0:01:42.5]} 27... Rxd5 {[%clk
0:01:11.2]} 28. Nxb5 {[%clk 0:01:25]} 28... Rxd1 {[%clk 0:01:08.5]} 29. Rxd1
{[%clk 0:01:12.4]} 29... axb5 {[%clk 0:01:08.4]} 30. Bxb5 {[%clk 0:01:14.3]}
30... Bb6 {[%clk 0:01:02.8]} 31. Bc4 {[%clk 0:01:09.2]} 31... f5 {[%clk
0:01:00.8]} 32. b4 {[%clk 0:01:06.8]} 32... Re3 {[%clk 0:01:01.4]} 33. Rd3
{[%clk 0:01:02.5]} 33... Re2+ {[%clk 0:01:01.3]} 34. Rd2 {[%clk 0:01:04.1]}
34... Re3 {[%clk 0:01:02.6]} 35. f4 {[%clk 0:01:00.2]} 35... h5 {[%clk
0:00:53.5]} 36. a4 {[%clk 0:01:00]} 36... h4 {[%clk 0:00:54.7]} 37. gxh4 {[%clk
0:00:58.7]} 37... Bc7 {[%clk 0:00:54]} 38. Bf7 {[%clk 0:00:56]} 38... Re4 {[%clk
0:00:51.4]} 39. Kb3 {[%clk 0:00:51.7]} 39... Bxf4 {[%clk 0:00:51.3]} 40. Rc2+
{[%clk 0:00:52.2]} 40... Kb7 {[%clk 0:00:47.4]} 41. Bxg6 {[%clk 0:00:53.7]}
41... Bd6 {[%clk 0:00:48.6]} 42. Rc4 {[%clk 0:00:48.6]} 42... Re3+ {[%clk
0:00:50]} 43. Rc3 {[%clk 0:00:46.4]} 43... Re4 {[%clk 0:00:51.2]} 44. Rc4 {[%clk
0:00:47.7]} 44... Re3+ {[%clk 0:00:52.5]} 45. Kc2 {[%clk 0:00:49.3]} 45... f4
{[%clk 0:00:51.6]} 46. Bd3 {[%clk 0:00:30.2]} 46... f3 {[%clk 0:00:49.2]} 47.
Re4 {[%clk 0:00:30]} 47... Rxe4 {[%clk 0:00:42.8]} 48. Bxe4+ {[%clk 0:00:31.9]}
48... Kc7 {[%clk 0:00:37.7]} 49. Bxf3 {[%clk 0:00:12.2]} 49... Bxb4 {[%clk
0:00:38.7]} 50. Kd3 {[%clk 0:00:13.4]} 50... Kd6 {[%clk 0:00:37.4]} 51. Kc4
{[%clk 0:00:13.8]} 51... Be1 {[%clk 0:00:38]} 52. h5 {[%clk 0:00:14.3]} 52...
Ke7 {[%clk 0:00:38.9]} 53. Kb5 {[%clk 0:00:15.4]} 53... Kf7 {[%clk 0:00:37.4]}
54. Be4 {[%clk 0:00:15.5]} 54... Kg7 {[%clk 0:00:38.4]} 55. Bg6 {[%clk 0:00:17]}
55... Kh6 {[%clk 0:00:39.6]} 56. Kc6 {[%clk 0:00:18]} 56... Bd2 {[%clk
0:00:40.4]} 57. Kd7 {[%clk 0:00:19.4]} 57... Kg7 {[%clk 0:00:41.5]} 58. Ke6
{[%clk 0:00:21.3]} 58... Bc3 {[%clk 0:00:42]} 59. h3 {[%clk 0:00:21.7]} 59...
Bd2 {[%clk 0:00:43.3]} 60. Kf5 {[%clk 0:00:21.6]} 60... Bc3 {[%clk 0:00:43.8]}
61. Be8 {[%clk 0:00:22.4]} 61... Kh8 {[%clk 0:00:44.8]} 62. h6 {[%clk
0:00:22.4]} 62... Bd2 {[%clk 0:00:45.4]} 63. Kg6 {[%clk 0:00:22.6]} 63... Ba5
{[%clk 0:00:46.4]} 64. Bf7 {[%clk 0:00:23.2]} 64... Bb4 {[%clk 0:00:47.5]} 65.
Bc4 {[%clk 0:00:24.7]} 65... Ba5 {[%clk 0:00:48.6]} 66. Kf7 {[%clk 0:00:25.8]}
66... Bd2 {[%clk 0:00:49.5]} 67. Bd3 {[%clk 0:00:27.2]} 67... Bxh6 {[%clk
0:00:49.5]} 68. a5 {[%clk 0:00:27.5]} 68... Be3 {[%clk 0:00:50.6]} 69. a6 {[%clk
0:00:27.7]} 69... Bf2 {[%clk 0:00:51.5]} 70. h4 {[%clk 0:00:28.5]} 70... Be3
{[%clk 0:00:52.3]} 1/2-1/2

[Event "*** Titled Tuesday 3|2 Blitz"]
[Site "Chess.com"]
[Date "2016.05.03"]
[Round "1"]
[White "rookoco"]
[Black "FLchessplayer"]
[Result "0-1"]
[WhiteElo "2408"]
[BlackElo "2072"]
[TimeControl "180+2"]
[EndTime "17:10:18 PDT"]
[Termination "FLchessplayer won on time"]

1. e4 {[%clk 0:02:55.5]} 1... c5 {[%clk 0:03:00.8]} 2. Nf3 {[%clk 0:02:56.2]}
2... d6 {[%clk 0:03:02.1]} 3. d4 {[%clk 0:02:57.4]} 3... cxd4 {[%clk 0:03:03.3]}
4. Nxd4 {[%clk 0:02:57]} 4... Nf6 {[%clk 0:03:04.4]} 5. Nc3 {[%clk 0:02:57.9]}
5... g6 {[%clk 0:03:05.3]} 6. Be3 {[%clk 0:02:58.9]} 6... Bg7 {[%clk 0:03:06.5]}
7. Be2 {[%clk 0:03:00.2]} 7... O-O {[%clk 0:03:07.2]} 8. Qd2 {[%clk 0:03:01.1]}
8... Nc6 {[%clk 0:03:07.4]} 9. Nb3 {[%clk 0:03:01.1]} 9... Be6 {[%clk
0:03:07.2]} 10. f4 {[%clk 0:02:59.8]} 10... Na5 {[%clk 0:03:00.3]} 11. Nxa5
{[%clk 0:02:57.7]} 11... Qxa5 {[%clk 0:03:00.7]} 12. Bf3 {[%clk 0:02:57.7]}
12... Rfc8 {[%clk 0:03:00.5]} 13. Bd4 {[%clk 0:02:56.6]} 13... Rc7 {[%clk
0:02:48.6]} 14. O-O {[%clk 0:02:45.4]} 14... Rac8 {[%clk 0:02:49.6]} 15. Rfd1
{[%clk 0:02:45.6]} 15... b6 {[%clk 0:02:44.4]} 16. a3 {[%clk 0:02:42.3]} 16...
h5 {[%clk 0:02:40.7]} 17. h3 {[%clk 0:02:34.9]} 17... Nd7 {[%clk 0:02:37.3]} 18.
Bxg7 {[%clk 0:02:18.4]} 18... Kxg7 {[%clk 0:02:37.6]} 19. Kh1 {[%clk 0:02:14]}
19... Nf6 {[%clk 0:02:27.6]} 20. Qf2 {[%clk 0:02:07.8]} 20... Qc5 {[%clk
0:02:26.7]} 21. Qg3 {[%clk 0:02:07.9]} 21... b5 {[%clk 0:02:12]} 22. Rd3 {[%clk
0:02:04.5]} 22... a5 {[%clk 0:02:08.9]} 23. Rd2 {[%clk 0:02:01.3]} 23... b4
{[%clk 0:02:03]} 24. axb4 {[%clk 0:02:02]} 24... axb4 {[%clk 0:02:04.1]} 25. Ne2
{[%clk 0:01:48.8]} 25... Qe3 {[%clk 0:02:03.1]} 26. Rd3 {[%clk 0:01:47.7]} 26...
Qb6 {[%clk 0:01:52.1]} 27. Nd4 {[%clk 0:01:48.2]} 27... Bd7 {[%clk 0:01:46.3]}
28. e5 {[%clk 0:01:47]} 28... dxe5 {[%clk 0:01:38.3]} 29. fxe5 {[%clk
0:01:48.9]} 29... Ng8 {[%clk 0:01:32.3]} 30. Bxh5 {[%clk 0:01:47.7]} 30... Rc4
{[%clk 0:01:27.6]} 31. Rad1 {[%clk 0:01:46.2]} 31... Rxd4 {[%clk 0:01:24.2]} 32.
Rxd4 {[%clk 0:01:45.2]} 32... Be6 {[%clk 0:01:25.6]} 33. R4d2 {[%clk 0:01:39.9]}
33... Nh6 {[%clk 0:01:26]} 34. Bf3 {[%clk 0:01:40.2]} 34... Nf5 {[%clk 0:01:26]}
35. Qf4 {[%clk 0:01:40.8]} 35... Rc4 {[%clk 0:01:26]} 36. Qg5 {[%clk 0:01:36.4]}
36... Qc7 {[%clk 0:01:24.4]} 37. g4 {[%clk 0:01:28]} 37... Nh6 {[%clk 0:01:09]}
38. Qe3 {[%clk 0:01:24.8]} 38... Rxc2 {[%clk 0:01:04.8]} 39. Rxc2 {[%clk
0:01:21.6]} 39... Qxc2 {[%clk 0:01:05.8]} 40. Rd2 {[%clk 0:01:10.9]} 40... Qc1+
{[%clk 0:01:00.3]} 41. Kg2 {[%clk 0:01:11.1]} 41... Qc7 {[%clk 0:00:59.2]} 42.
Qd4 {[%clk 0:01:07.9]} 42... Qa5 {[%clk 0:00:55.2]} 43. h4 {[%clk 0:01:05.3]}
43... Qa4 {[%clk 0:00:51.9]} 44. h5 {[%clk 0:01:04]} 44... gxh5 {[%clk
0:00:50.1]} 45. gxh5 {[%clk 0:01:03.5]} 45... Qb3 {[%clk 0:00:48.5]} 46. Qf4
{[%clk 0:00:44.1]} 46... Nf5 {[%clk 0:00:45.4]} 47. Qg5+ {[%clk 0:00:43.9]}
47... Kh7 {[%clk 0:00:44.2]} 48. Be4 {[%clk 0:00:36.9]} 48... Qc4 {[%clk
0:00:15.7]} 49. Bxf5+ {[%clk 0:00:36.1]} 49... Bxf5 {[%clk 0:00:17]} 50. Qxf5+
{[%clk 0:00:21.7]} 50... Kh6 {[%clk 0:00:17]} 51. Rf2 {[%clk 0:00:02.4]} 51...
Qd5+ {[%clk 0:00:17.2]} 52. Qf3 {[%clk 0:00:03.2]} 52... Qxe5 {[%clk 0:00:18]}
53. Qf4+ {[%clk 0:00:05.1]} 53... Qxf4 {[%clk 0:00:19.2]} 54. Rxf4 {[%clk
0:00:07]} 54... f6 {[%clk 0:00:21.1]} 0-1

[Event "*** Titled Tuesday 3|2 Blitz"]
[Site "Chess.com"]
[Date "2016.05.03"]
[Round "1"]
[White "TheLancer"]
[Black "jposthuma"]
[Result "0-1"]
[WhiteElo "2466"]
[BlackElo "2144"]
[TimeControl "180+2"]
[EndTime "17:10:57 PDT"]
[Termination "jposthuma won by resignation"]

1. e4 {[%clk 0:02:59.7]} 1... d5 {[%clk 0:02:58.2]} 2. exd5 {[%clk 0:03:00]}
2... Qxd5 {[%clk 0:03:00.1]} 3. Nc3 {[%clk 0:03:01.4]} 3... Qd8 {[%clk
0:03:01.3]} 4. d4 {[%clk 0:02:53.1]} 4... Nf6 {[%clk 0:03:02.5]} 5. Bc4 {[%clk
0:02:50.7]} 5... a6 {[%clk 0:03:03.5]} 6. a4 {[%clk 0:02:37.6]} 6... Nc6 {[%clk
0:03:04.2]} 7. Be3 {[%clk 0:02:36.2]} 7... Bf5 {[%clk 0:03:04.8]} 8. Nf3 {[%clk
0:02:34.4]} 8... e6 {[%clk 0:03:04.2]} 9. O-O {[%clk 0:02:29.6]} 9... Nb4 {[%clk
0:03:02.3]} 10. Bb3 {[%clk 0:02:23.3]} 10... Be7 {[%clk 0:03:02.3]} 11. Ne5
{[%clk 0:02:16.3]} 11... O-O {[%clk 0:03:02.5]} 12. Qe2 {[%clk 0:02:00.1]} 12...
c6 {[%clk 0:02:52.2]} 13. a5 {[%clk 0:01:57.7]} 13... Qc7 {[%clk 0:02:49.6]} 14.
Nc4 {[%clk 0:01:36.5]} 14... Nbd5 {[%clk 0:02:43.6]} 15. Nxd5 {[%clk 0:01:31.5]}
15... Nxd5 {[%clk 0:02:45.3]} 16. h3 {[%clk 0:01:09.5]} 16... Rad8 {[%clk
0:02:34.8]} 17. Rfd1 {[%clk 0:01:09.1]} 17... Bf6 {[%clk 0:02:25.8]} 18. c3
{[%clk 0:01:07.3]} 18... Rd7 {[%clk 0:02:06.1]} 19. Bc2 {[%clk 0:00:42.2]} 19...
Bxc2 {[%clk 0:02:06.8]} 20. Qxc2 {[%clk 0:00:44.1]} 20... Rfd8 {[%clk
0:02:04.2]} 21. b4 {[%clk 0:00:41]} 21... e5 {[%clk 0:01:20]} 22. dxe5 {[%clk
0:00:35.2]} 22... Bxe5 {[%clk 0:01:21.9]} 23. Bd4 {[%clk 0:00:14.6]} 23... Nxb4
{[%clk 0:01:06.5]} 24. cxb4 {[%clk 0:00:15.1]} 24... Bxd4 {[%clk 0:01:03.1]} 25.
Rab1 {[%clk 0:00:16]} 25... Qf4 {[%clk 0:00:55.8]} 26. Rf1 {[%clk 0:00:15.6]}
26... Re7 {[%clk 0:00:47.8]} 27. Rb3 {[%clk 0:00:15.9]} 27... Rde8 {[%clk
0:00:46]} 28. Rf3 {[%clk 0:00:16.9]} 28... Qg5 {[%clk 0:00:40.5]} 29. Rf5 {[%clk
0:00:16.7]} 29... Qg6 {[%clk 0:00:39.3]} 30. Qd3 {[%clk 0:00:17.3]} 30... Re4
{[%clk 0:00:32]} 31. Rf3 {[%clk 0:00:13.9]} 31... h5 {[%clk 0:00:26.1]} 32. Kh1
{[%clk 0:00:13.5]} 32... Re1 {[%clk 0:00:21.3]} 33. Rxe1 {[%clk 0:00:13.1]}
33... Rxe1+ {[%clk 0:00:21.9]} 34. Kh2 {[%clk 0:00:14.6]} 34... Qxd3 {[%clk
0:00:20.3]} 35. Rxd3 {[%clk 0:00:16.5]} 35... Bxf2 {[%clk 0:00:21.7]} 36. Nd6
{[%clk 0:00:14.1]} 36... h4 {[%clk 0:00:20]} 37. Nxb7 {[%clk 0:00:11.9]} 37...
Bg3+ {[%clk 0:00:20.8]} 38. Rxg3 {[%clk 0:00:13.5]} 38... hxg3+ {[%clk
0:00:22.7]} 39. Kxg3 {[%clk 0:00:15.3]} 39... Rb1 {[%clk 0:00:23.2]} 40. Nd8
{[%clk 0:00:13.5]} 40... Rxb4 {[%clk 0:00:23.8]} 41. Nxc6 {[%clk 0:00:14.7]}
41... Rc4 {[%clk 0:00:24.3]} 42. Nb8 {[%clk 0:00:13.2]} 42... Rc5 {[%clk
0:00:25.1]} 43. Nxa6 {[%clk 0:00:12.7]} 43... Rxa5 {[%clk 0:00:26.7]} 44. Nc7
{[%clk 0:00:13.8]} 44... Re5 {[%clk 0:00:27.4]} 45. Na6 {[%clk 0:00:14.1]} 45...
f6 {[%clk 0:00:26.9]} 46. Nb4 {[%clk 0:00:15.3]} 46... Re4 {[%clk 0:00:27.7]}
47. Nd5 {[%clk 0:00:15.7]} 47... Rd4 {[%clk 0:00:28.9]} 48. Ne7+ {[%clk
0:00:16.3]} 48... Kf7 {[%clk 0:00:30.3]} 49. Nf5 {[%clk 0:00:18.2]} 49... Rd3+
{[%clk 0:00:31.5]} 50. Kh2 {[%clk 0:00:19.6]} 50... g6 {[%clk 0:00:32.2]} 51.
Nh6+ {[%clk 0:00:20.6]} 51... Ke6 {[%clk 0:00:33.4]} 52. Ng4 {[%clk 0:00:22.5]}
52... f5 {[%clk 0:00:34.4]} 53. Nf2 {[%clk 0:00:23.8]} 53... Rd2 {[%clk
0:00:35.2]} 54. Nh1 {[%clk 0:00:24.6]} 54... f4 {[%clk 0:00:36]} 55. Kg1 {[%clk
0:00:25.2]} 55... Kf5 {[%clk 0:00:36.4]} 56. Nf2 {[%clk 0:00:26.6]} 56... Ra2
{[%clk 0:00:37.1]} 57. Ng4 {[%clk 0:00:26.8]} 57... g5 {[%clk 0:00:37]} 58. Kf1
{[%clk 0:00:26.2]} 58... Ke4 {[%clk 0:00:37.4]} 59. Nf2+ {[%clk 0:00:27.5]}
59... Ke3 {[%clk 0:00:37.3]} 60. Ng4+ {[%clk 0:00:25]} 60... Kd3 {[%clk
0:00:38.5]} 61. Nf2+ {[%clk 0:00:24.9]} 61... Kd4 {[%clk 0:00:37.5]} 62. Ng4
{[%clk 0:00:24.7]} 62... Ra3 {[%clk 0:00:36.2]} 63. Kf2 {[%clk 0:00:24.6]} 63...
Rb3 {[%clk 0:00:35.6]} 64. Nh2 {[%clk 0:00:24.3]} 64... Ke4 {[%clk 0:00:35.7]}
65. Ng4 {[%clk 0:00:25.1]} 65... f3 {[%clk 0:00:34.3]} 66. gxf3+ {[%clk
0:00:26.4]} 66... Rxf3+ {[%clk 0:00:35.3]} 67. Kg2 {[%clk 0:00:28.3]} 67... Kf4
{[%clk 0:00:35.1]} 68. Nf6 {[%clk 0:00:23]} 68... Ra3 {[%clk 0:00:34.5]} 69.
Nd5+ {[%clk 0:00:20.9]} 69... Ke5 {[%clk 0:00:34.3]} 70. Ne7 {[%clk 0:00:20.8]}
70... Kf6 {[%clk 0:00:34.7]} 71. Nd5+ {[%clk 0:00:21.6]} 71... Kg6 {[%clk
0:00:35.4]} 72. Nb4 {[%clk 0:00:20.5]} 72... Kh5 {[%clk 0:00:35.5]} 73. Nd5
{[%clk 0:00:17]} 73... Kh4 {[%clk 0:00:36.1]} 74. Nf6 {[%clk 0:00:17.8]} 74...
Rg3+ {[%clk 0:00:36.5]} 75. Kf2 {[%clk 0:00:18.2]} 75... Rxh3 {[%clk 0:00:37.5]}
76. Ne4 {[%clk 0:00:19.6]} 76... g4 {[%clk 0:00:37.8]} 77. Kg2 {[%clk
0:00:20.4]} 77... Re3 {[%clk 0:00:38.4]} 78. Nf2 {[%clk 0:00:17.3]} 78... Re2
{[%clk 0:00:39.4]} 79. Kf1 {[%clk 0:00:18.8]} 79... Rxf2+ {[%clk 0:00:38.5]} 80.
Kxf2 {[%clk 0:00:20.7]} 80... Kh3 {[%clk 0:00:39.9]} 81. Kg1 {[%clk 0:00:22.1]}
81... Kg3 {[%clk 0:00:41.3]} 82. Kf1 {[%clk 0:00:23.4]} 82... Kh2 {[%clk
0:00:42.5]} 0-1

[Event "*** Titled Tuesday 3|2 Blitz"]
[Site "Chess.com"]
[Date "2016.05.03"]
[Round "1"]
[White "yarosavich"]
[Black "andretta"]
[Result "1-0"]
[WhiteElo "2528"]
[BlackElo "2167"]
[TimeControl "180+2"]
[EndTime "17:11:54 PDT"]
[Termination "yarosavich won by resignation"]

1. d4 {[%clk 0:03:01.7]} 1... e6 {[%clk 0:02:58.9]} 2. c4 {[%clk 0:02:59.3]}
2... d5 {[%clk 0:02:58.5]} 3. Nf3 {[%clk 0:02:59.6]} 3... Nf6 {[%clk 0:02:59.9]}
4. g3 {[%clk 0:03:00.4]} 4... Be7 {[%clk 0:03:01.3]} 5. Bg2 {[%clk 0:03:01.2]}
5... O-O {[%clk 0:03:02.8]} 6. O-O {[%clk 0:03:02.3]} 6... Nbd7 {[%clk
0:03:04.2]} 7. Qc2 {[%clk 0:02:58.9]} 7... c6 {[%clk 0:03:04.8]} 8. Nbd2 {[%clk
0:02:59.5]} 8... b6 {[%clk 0:03:05.5]} 9. e4 {[%clk 0:03:00.6]} 9... Bb7 {[%clk
0:03:06.6]} 10. e5 {[%clk 0:03:00.7]} 10... Ne8 {[%clk 0:03:07.8]} 11. cxd5
{[%clk 0:03:02.1]} 11... cxd5 {[%clk 0:03:08.1]} 12. Re1 {[%clk 0:03:03.7]}
12... Rc8 {[%clk 0:03:09.1]} 13. Qd1 {[%clk 0:03:05]} 13... Qc7 {[%clk
0:03:10.1]} 14. Qe2 {[%clk 0:02:20.1]} 14... a5 {[%clk 0:02:58.8]} 15. h4 {[%clk
0:02:12.6]} 15... Nb8 {[%clk 0:02:57.8]} 16. Nf1 {[%clk 0:02:12.9]} 16... Qc2
{[%clk 0:02:49.3]} 17. Bd2 {[%clk 0:02:10.6]} 17... Ba6 {[%clk 0:02:46.5]} 18.
Qe3 {[%clk 0:02:10.5]} 18... Nc7 {[%clk 0:02:04]} 19. b3 {[%clk 0:01:51.6]}
19... Qc6 {[%clk 0:01:47.5]} 20. N1h2 {[%clk 0:01:45.6]} 20... Na8 {[%clk
0:01:34.2]} 21. Ng4 {[%clk 0:01:37]} 21... Rfd8 {[%clk 0:01:09.4]} 22. h5 {[%clk
0:01:37.4]} 22... Qe8 {[%clk 0:00:34.5]} 23. Qf4 {[%clk 0:01:35.2]} 23... h6
{[%clk 0:00:29.9]} 24. Bh3 {[%clk 0:00:47]} 24... Bd3 {[%clk 0:00:26.7]} 25. Kh2
{[%clk 0:00:41]} 25... Nd7 {[%clk 0:00:25.8]} 26. Qe3 {[%clk 0:00:34.6]} 26...
Bh7 {[%clk 0:00:20.5]} 27. Bf1 {[%clk 0:00:33.9]} 27... Rc7 {[%clk 0:00:17.1]}
28. Kg2 {[%clk 0:00:29.9]} 28... Nb8 {[%clk 0:00:17.1]} 29. Nfh2 {[%clk
0:00:28.5]} 29... Rdc8 {[%clk 0:00:18.3]} 30. f4 {[%clk 0:00:27.4]} 30... Be4+
{[%clk 0:00:18.1]} 31. Kh3 {[%clk 0:00:26.8]} 31... Rc2 {[%clk 0:00:18.1]} 32.
Rec1 {[%clk 0:00:26.4]} 32... Bf5 {[%clk 0:00:18.6]} 33. Bd3 {[%clk 0:00:22.4]}
33... Rxc1 {[%clk 0:00:18.5]} 34. Rxc1 {[%clk 0:00:22.7]} 34... Bxd3 {[%clk
0:00:19.2]} 35. Qxd3 {[%clk 0:00:21.6]} 35... Rxc1 {[%clk 0:00:21.1]} 36. Bxc1
{[%clk 0:00:23]} 36... Qc8 {[%clk 0:00:22.1]} 37. Bd2 {[%clk 0:00:23.4]} 37...
Qa6 {[%clk 0:00:23.3]} 38. Qe3 {[%clk 0:00:20.3]} 38... Nd7 {[%clk 0:00:22.5]}
39. Kg2 {[%clk 0:00:21.5]} 39... Nc7 {[%clk 0:00:22.4]} 40. Nf2 {[%clk
0:00:22.4]} 40... Qb5 {[%clk 0:00:21.9]} 41. g4 {[%clk 0:00:22.8]} 41... Bb4
{[%clk 0:00:22.4]} 42. Nf3 {[%clk 0:00:23.4]} 42... Bxd2 {[%clk 0:00:23]} 43.
Nxd2 {[%clk 0:00:25.3]} 43... Qc6 {[%clk 0:00:23.3]} 44. a4 {[%clk 0:00:23.3]}
44... b5 {[%clk 0:00:24.1]} 45. axb5 {[%clk 0:00:23.4]} 45... Nxb5 {[%clk
0:00:26]} 46. f5 {[%clk 0:00:22.9]} 46... Qb6 {[%clk 0:00:24.5]} 47. Nf3 {[%clk
0:00:23.6]} 47... Nc7 {[%clk 0:00:21.4]} 48. Nh3 {[%clk 0:00:22.1]} 48... Nf8
{[%clk 0:00:21.7]} 49. Nf4 {[%clk 0:00:23.1]} 49... Ne8 {[%clk 0:00:21.7]} 50.
g5 {[%clk 0:00:22.1]} 50... hxg5 {[%clk 0:00:22.1]} 51. Nxg5 {[%clk 0:00:24]}
51... exf5 {[%clk 0:00:22.5]} 52. Nxd5 {[%clk 0:00:22.3]} 52... Qb7 {[%clk
0:00:17.5]} 53. Qf3 {[%clk 0:00:23.4]} 53... Qd7 {[%clk 0:00:14.2]} 54. Nh3
{[%clk 0:00:17.7]} 54... Nh7 {[%clk 0:00:15.6]} 55. Nhf4 {[%clk 0:00:17]} 55...
Nc7 {[%clk 0:00:15.7]} 56. Nxc7 {[%clk 0:00:15.8]} 56... Qxc7 {[%clk 0:00:17.6]}
57. Nd5 {[%clk 0:00:13.2]} 57... Qc2+ {[%clk 0:00:17.2]} 58. Kg3 {[%clk
0:00:14.2]} 58... f4+ {[%clk 0:00:17.7]} 59. Nxf4 {[%clk 0:00:14]} 59... Ng5
{[%clk 0:00:17.9]} 60. Qd3 {[%clk 0:00:13]} 60... Ne4+ {[%clk 0:00:17.8]} 61.
Kf3 {[%clk 0:00:12.7]} 61... Nd2+ {[%clk 0:00:11.5]} 62. Ke2 {[%clk 0:00:08.4]}
62... Qxd3+ {[%clk 0:00:09.8]} 63. Kxd3 {[%clk 0:00:09]} 63... Nxb3 {[%clk
0:00:11.7]} 64. d5 {[%clk 0:00:06.9]} 64... Kf8 {[%clk 0:00:11.2]} 65. Kc3
{[%clk 0:00:06.1]} 65... Nc5 {[%clk 0:00:11.3]} 66. Ne2 {[%clk 0:00:05.7]} 66...
Ke7 {[%clk 0:00:10.5]} 67. Nd4 {[%clk 0:00:07]} 67... Ne4+ {[%clk 0:00:11.3]}
68. Kd3 {[%clk 0:00:07.2]} 68... Nc5+ {[%clk 0:00:12]} 69. Kc4 {[%clk
0:00:08.7]} 69... Ne4 {[%clk 0:00:11.8]} 70. Nc6+ {[%clk 0:00:10.1]} 70... Kd7
{[%clk 0:00:11.2]} 71. Nxa5 {[%clk 0:00:12]} 71... Ng3 {[%clk 0:00:12.5]} 72.
Nb7 {[%clk 0:00:11.8]} 72... Nxh5 {[%clk 0:00:12.8]} 73. Nc5+ {[%clk 0:00:13.7]}
73... Kd8 {[%clk 0:00:13.3]} 74. d6 {[%clk 0:00:14.8]} 74... Nf4 {[%clk
0:00:14.9]} 75. Kd4 {[%clk 0:00:15.2]} 75... g5 {[%clk 0:00:15.2]} 76. Ke4
{[%clk 0:00:16.6]} 76... Ng6 {[%clk 0:00:16.8]} 77. Kf5 {[%clk 0:00:14.6]} 77...
g4 {[%clk 0:00:16.8]} 78. Ne4 {[%clk 0:00:14]} 78... Kd7 {[%clk 0:00:14.6]} 79.
Nf6+ {[%clk 0:00:15.3]} 79... Kc6 {[%clk 0:00:15.8]} 80. Nxg4 {[%clk 0:00:17.2]}
80... Nf8 {[%clk 0:00:15]} 81. Nh6 {[%clk 0:00:16.6]} 81... Kd7 {[%clk 0:00:14]}
82. Nxf7 {[%clk 0:00:17.6]} 82... Ne6 {[%clk 0:00:15.9]} 83. Nh6 {[%clk
0:00:18.2]} 83... Nd4+ {[%clk 0:00:17.5]} 84. Ke4 {[%clk 0:00:19.1]} 84... Nc6
{[%clk 0:00:19.1]} 85. Ng4 {[%clk 0:00:18.6]} 85... Nd8 {[%clk 0:00:19.5]} 86.
Kd5 {[%clk 0:00:19.4]} 86... Ke8 {[%clk 0:00:16.2]} 87. e6 {[%clk 0:00:19]}
87... Nb7 {[%clk 0:00:15.3]} 88. Nf6+ {[%clk 0:00:20]} 88... Kd8 {[%clk
0:00:16.6]} 89. e7+ {[%clk 0:00:21.4]} 1-0

[Event "*** Titled Tuesday 3|2 Blitz"]
[Site "Chess.com"]
[Date "2016.05.03"]
[Round "2"]
[White "andryusha"]
[Black "rookoco"]
[Result "0-1"]
[WhiteElo "2181"]
[BlackElo "2417"]
[TimeControl "180+2"]
[EndTime "17:15:57 PDT"]
[Termination "rookoco won by resignation"]

1. e4 {[%clk 0:02:43.8]} 1... c5 {[%clk 0:02:47]} 2. Nf3 {[%clk 0:02:44.6]} 2...
d6 {[%clk 0:02:47.7]} 3. Bb5+ {[%clk 0:02:43.8]} 3... Nd7 {[%clk 0:02:48.1]} 4.
d4 {[%clk 0:02:42.2]} 4... cxd4 {[%clk 0:02:46.8]} 5. Qxd4 {[%clk 0:02:42.2]}
5... a6 {[%clk 0:02:46.1]} 6. Bxd7+ {[%clk 0:02:42]} 6... Bxd7 {[%clk 0:02:48]}
7. Nc3 {[%clk 0:02:43.3]} 7... Rc8 {[%clk 0:02:48.6]} 8. O-O {[%clk 0:02:43.6]}
8... Qc7 {[%clk 0:02:48.6]} 9. Be3 {[%clk 0:02:40.8]} 9... Nf6 {[%clk
0:02:47.8]} 10. Rac1 {[%clk 0:02:38.2]} 10... e5 {[%clk 0:02:47]} 11. Qd3 {[%clk
0:02:38.2]} 11... h6 {[%clk 0:02:48.1]} 12. h3 {[%clk 0:02:38.4]} 12... Be7
{[%clk 0:02:48.8]} 13. a4 {[%clk 0:02:39.6]} 13... O-O {[%clk 0:02:46.4]} 14.
Rfd1 {[%clk 0:02:40.7]} 14... Be6 {[%clk 0:02:40.3]} 15. Qd2 {[%clk 0:02:35.1]}
15... Qc6 {[%clk 0:02:36.8]} 16. Nd5 {[%clk 0:02:25.9]} 16... Bxd5 {[%clk
0:02:31]} 17. exd5 {[%clk 0:02:27]} 17... Qxa4 {[%clk 0:02:31.4]} 18. b3 {[%clk
0:02:26.7]} 18... Qd7 {[%clk 0:02:26.3]} 19. c4 {[%clk 0:02:26.3]} 19... b5
{[%clk 0:02:27.1]} 20. c5 {[%clk 0:02:14.8]} 20... dxc5 {[%clk 0:02:22.4]} 21.
Nxe5 {[%clk 0:02:16.1]} 21... Qb7 {[%clk 0:02:16.4]} 22. d6 {[%clk 0:01:51.1]}
22... Rfd8 {[%clk 0:02:16.5]} 23. Rxc5 {[%clk 0:01:45.2]} 23... Rxd6 {[%clk
0:02:15.2]} 24. Rc6 {[%clk 0:01:44.5]} 0-1